[Event "Titled Tuesday Blitz March 28 Late 2023"]
[White "Skibbe, Willi"]
[Black "Lewtak, Damian"]
[WhiteFideId "4682190"]
[BlackFideId "1141724"]
[WhiteElo "2322"]
[BlackElo "2302"]
[Result "0-1"]
[Round "02"]
[TimeControl "180+2"]
[Date "2023.03.28"]
[WhiteClock "0:00:07"]
[BlackClock "0:00:34"]

1. d4 {[%clk 0:02:03]}  g6 {[%clk 0:02:56]} 2. c4 {[%clk 0:02:00]}  Bg7 {[%clk 0:02:56]} 3. e4 {[%clk 0:02:01]}  d6 {[%clk 0:02:56]} 4. Nc3 {[%clk 0:02:00]}  e5 {[%clk 0:02:56]} 5. dxe5 {[%clk 0:01:59]}  dxe5 {[%clk 0:02:57]} 6. Qxd8+ {[%clk 0:01:59]}  Kxd8 {[%clk 0:02:57]} 7. f4 {[%clk 0:02:00]}  Nc6 {[%clk 0:02:56]} 8. Be3 {[%clk 0:01:45]}  exf4 {[%clk 0:02:54]} 9. Bxf4 {[%clk 0:01:43]}  Bh6 {[%clk 0:02:49]} 10. O-O-O+ {[%clk 0:01:36]}  Bd7 {[%clk 0:02:46]} 11. g3 {[%clk 0:01:35]}  Kc8 {[%clk 0:02:22]} 12. Bh3 {[%clk 0:01:28]}  Bxf4+ {[%clk 0:02:15]} 13. gxf4 {[%clk 0:01:25]}  Nf6 {[%clk 0:02:10]} 14. e5 {[%clk 0:01:20]}  Bxh3 {[%clk 0:02:09]} 15. Nxh3 {[%clk 0:01:20]}  Ng4 {[%clk 0:02:02]} 16. Ne4 {[%clk 0:01:19]}  h6 {[%clk 0:01:39]} 17. b3 {[%clk 0:01:12]}  a5 {[%clk 0:01:33]} 18. Rd3 {[%clk 0:00:53]}  a4 {[%clk 0:01:29]} 19. Kb2 {[%clk 0:00:49]}  axb3 {[%clk 0:01:18]} 20. axb3 {[%clk 0:00:48]}  Nb4 {[%clk 0:01:16]} 21. Rg3 {[%clk 0:00:48]}  h5 {[%clk 0:01:16]} 22. Nhg5 {[%clk 0:00:47]}  b6 {[%clk 0:01:05]} 23. h3 {[%clk 0:00:39]}  Ra2+ {[%clk 0:01:01]} 24. Kb1 {[%clk 0:00:27]}  Nh6 {[%clk 0:00:59]} 25. Rd1 {[%clk 0:00:20]}  Kb7 {[%clk 0:00:58]} 26. Rd7 {[%clk 0:00:18]}  Rha8 {[%clk 0:00:55]} 27. Nxf7 {[%clk 0:00:13]}  Nxf7 {[%clk 0:00:54]} 28. Rxf7 {[%clk 0:00:13]}  Rh2 {[%clk 0:00:49]} 29. e6 {[%clk 0:00:12]}  Raa2 {[%clk 0:00:40]} 30. e7 {[%clk 0:00:07]}  Rab2+ {[%clk 0:00:35]} 31. Kc1 {[%clk 0:00:07]}  Na2+ {[%clk 0:00:34]} 0-1


[Site "https://www.chess.com"]

[Event "Titled Tuesday Blitz March 28 Late 2023"]
[White "K2JW"]
[Black "Skvortsov, Andrei"]
[BlackFideId "24108600"]
[WhiteElo "2313"]
[BlackElo "2259"]
[Result "0-1"]
[Round "02"]
[TimeControl "180+2"]
[Date "2023.03.28"]
[WhiteClock "0:00:08"]
[BlackClock "0:00:06"]

1. d4 {[%clk 0:03:00]}  d5 {[%clk 0:02:56]} 2. c4 {[%clk 0:03:00]}  dxc4 {[%clk 0:02:57]} 3. e3 {[%clk 0:03:00]}  Nf6 {[%clk 0:02:58]} 4. Bxc4 {[%clk 0:03:01]}  e6 {[%clk 0:02:59]} 5. Bd3 {[%clk 0:03:02]}  a6 {[%clk 0:03:00]} 6. Nf3 {[%clk 0:03:00]}  c5 {[%clk 0:03:00]} 7. dxc5 {[%clk 0:02:57]}  Bxc5 {[%clk 0:02:58]} 8. O-O {[%clk 0:02:57]}  O-O {[%clk 0:02:57]} 9. a3 {[%clk 0:02:56]}  Nc6 {[%clk 0:02:53]} 10. b4 {[%clk 0:02:56]}  Be7 {[%clk 0:02:53]} 11. Bb2 {[%clk 0:02:56]}  h6 {[%clk 0:02:44]} 12. Qe2 {[%clk 0:02:54]}  Qc7 {[%clk 0:02:36]} 13. Nbd2 {[%clk 0:02:51]}  Rd8 {[%clk 0:02:36]} 14. Rfd1 {[%clk 0:02:45]}  Bd7 {[%clk 0:02:35]} 15. Rac1 {[%clk 0:02:39]}  Be8 {[%clk 0:02:34]} 16. Nc4 {[%clk 0:02:16]}  b5 {[%clk 0:01:56]} 17. Nce5 {[%clk 0:01:25]}  Qb7 {[%clk 0:01:45]} 18. Bb1 {[%clk 0:01:05]}  Rac8 {[%clk 0:01:37]} 19. Rxd8 {[%clk 0:00:47]}  Bxd8 {[%clk 0:01:14]} 20. Nd3 {[%clk 0:00:28]}  Be7 {[%clk 0:01:07]} 21. Nc5 {[%clk 0:00:24]}  Qa8 {[%clk 0:01:03]} 22. Ba2 {[%clk 0:00:16]}  Nd8 {[%clk 0:00:59]} 23. Bd4 {[%clk 0:00:14]}  a5 {[%clk 0:00:49]} 24. Ne5 {[%clk 0:00:13]}  axb4 {[%clk 0:00:48]} 25. axb4 {[%clk 0:00:14]}  Nc6 {[%clk 0:00:33]} 26. Nxc6 {[%clk 0:00:11]}  Qxc6 {[%clk 0:00:14]} 27. Bb2 {[%clk 0:00:07]}  Qa8 {[%clk 0:00:12]} 28. Bb3 {[%clk 0:00:06]}  Bc6 {[%clk 0:00:12]} 29. f3 {[%clk 0:00:07]}  Bd5 {[%clk 0:00:12]} 30. Ra1 {[%clk 0:00:06]}  Qc6 {[%clk 0:00:11]} 31. Ra6 {[%clk 0:00:06]}  Qc7 {[%clk 0:00:11]} 32. Bxf6 {[%clk 0:00:06]}  Bxc5 {[%clk 0:00:06]} 33. Bxd5 {[%clk 0:00:06]}  Bxe3+ {[%clk 0:00:05]} 34. Qxe3 {[%clk 0:00:06]}  gxf6 {[%clk 0:00:04]} 35. Be4 {[%clk 0:00:06]}  f5 {[%clk 0:00:04]} 36. Bd3 {[%clk 0:00:06]}  Qc3 {[%clk 0:00:04]} 37. Kf2 {[%clk 0:00:04]}  Rd8 {[%clk 0:00:04]} 38. Bxb5 {[%clk 0:00:03]}  Qxb4 {[%clk 0:00:04]} 39. Be2 {[%clk 0:00:03]}  Qb2 {[%clk 0:00:03]} 40. Rc6 {[%clk 0:00:03]}  Rd2 {[%clk 0:00:02]} 41. Rc8+ {[%clk 0:00:03]}  Kg7 {[%clk 0:00:03]} 42. Qc3+ {[%clk 0:00:03]}  Qxc3 {[%clk 0:00:03]} 43. Rxc3 {[%clk 0:00:04]}  Ra2 {[%clk 0:00:03]} 44. Re3 {[%clk 0:00:05]}  Ra5 {[%clk 0:00:04]} 45. g3 {[%clk 0:00:05]}  Kf6 {[%clk 0:00:05]} 46. f4 {[%clk 0:00:06]}  Kg7 {[%clk 0:00:05]} 47. Kf3 {[%clk 0:00:07]}  Kf6 {[%clk 0:00:06]} 48. Re5 {[%clk 0:00:07]}  Ra7 {[%clk 0:00:06]} 49. Re3 {[%clk 0:00:07]}  Rc7 {[%clk 0:00:06]} 50. Rc3 {[%clk 0:00:08]}  Rxc3+ {[%clk 0:00:06]} 0-1


[Site "https://www.chess.com"]

[Event "Titled Tuesday Blitz March 28 Late 2023"]
[White "Da Silva Junior, Sediney Mari"]
[Black "Popov, Mikhail"]
[WhiteFideId "2132079"]
[BlackFideId "4146182"]
[WhiteElo "1977"]
[BlackElo "2270"]
[Result "0-1"]
[Round "02"]
[TimeControl "180+2"]
[Date "2023.03.28"]
[WhiteClock "0:01:39"]
[BlackClock "0:00:38"]

1. e4 {[%clk 0:03:00]}  e6 {[%clk 0:02:59]} 2. Nf3 {[%clk 0:03:00]}  d5 {[%clk 0:03:00]} 3. e5 {[%clk 0:03:00]}  c5 {[%clk 0:02:59]} 4. b4 {[%clk 0:03:00]}  d4 {[%clk 0:03:00]} 5. bxc5 {[%clk 0:03:00]}  Bxc5 {[%clk 0:03:01]} 6. Bc4 {[%clk 0:03:00]}  Nc6 {[%clk 0:03:00]} 7. d3 {[%clk 0:03:00]}  Nge7 {[%clk 0:03:00]} 8. O-O {[%clk 0:03:00]}  Ng6 {[%clk 0:03:00]} 9. Re1 {[%clk 0:03:00]}  O-O {[%clk 0:02:59]} 10. c3 {[%clk 0:02:59]}  a6 {[%clk 0:02:50]} 11. Bb2 {[%clk 0:02:59]}  b5 {[%clk 0:02:48]} 12. Bb3 {[%clk 0:02:59]}  Bb7 {[%clk 0:02:48]} 13. cxd4 {[%clk 0:02:58]}  Nxd4 {[%clk 0:02:48]} 14. Nbd2 {[%clk 0:02:56]}  Nxb3 {[%clk 0:02:33]} 15. Nxb3 {[%clk 0:02:55]}  Bb6 {[%clk 0:02:34]} 16. d4 {[%clk 0:02:55]}  Qd5 {[%clk 0:02:26]} 17. Rc1 {[%clk 0:02:53]}  a5 {[%clk 0:02:22]} 18. Nc5 {[%clk 0:02:53]}  Bc6 {[%clk 0:02:22]} 19. Qb3 {[%clk 0:02:48]}  Nf4 {[%clk 0:02:04]} 20. Qxd5 {[%clk 0:02:46]}  Bxd5 {[%clk 0:02:05]} 21. Nd7 {[%clk 0:02:45]}  Rfb8 {[%clk 0:01:27]} 22. Nxb8 {[%clk 0:02:41]}  Rxb8 {[%clk 0:01:27]} 23. a3 {[%clk 0:02:36]}  Nd3 {[%clk 0:01:26]} 24. Rb1 {[%clk 0:02:26]}  Bxf3 {[%clk 0:01:13]} 25. Re3 {[%clk 0:02:07]}  Nxb2 {[%clk 0:01:12]} 26. Rxf3 {[%clk 0:02:07]}  Bxd4 {[%clk 0:01:12]} 27. Rb3 {[%clk 0:02:03]}  Bxe5 {[%clk 0:00:57]} 28. Kf1 {[%clk 0:01:56]}  b4 {[%clk 0:00:56]} 29. Ke2 {[%clk 0:01:50]}  Bc3 {[%clk 0:00:52]} 30. R1xb2 {[%clk 0:01:48]}  Bxb2 {[%clk 0:00:52]} 31. Rxb2 {[%clk 0:01:48]}  Kf8 {[%clk 0:00:47]} 32. axb4 {[%clk 0:01:48]}  axb4 {[%clk 0:00:44]} 33. Kd3 {[%clk 0:01:49]}  Ke7 {[%clk 0:00:43]} 34. Kc4 {[%clk 0:01:49]}  Kd6 {[%clk 0:00:43]} 35. Kb3 {[%clk 0:01:50]}  e5 {[%clk 0:00:39]} 36. Rd2+ {[%clk 0:01:47]}  Ke6 {[%clk 0:00:40]} 37. f3 {[%clk 0:01:47]}  f5 {[%clk 0:00:40]} 38. Rc2 {[%clk 0:01:47]}  Rb7 {[%clk 0:00:38]} 39. Rc6+ {[%clk 0:01:47]}  Kd5 {[%clk 0:00:38]} 40. Rc8 {[%clk 0:01:47]}  e4 {[%clk 0:00:38]} 41. Rd8+ {[%clk 0:01:47]}  Ke5 {[%clk 0:00:38]} 42. fxe4 {[%clk 0:01:45]}  fxe4 {[%clk 0:00:39]} 43. Re8+ {[%clk 0:01:45]}  Kd4 {[%clk 0:00:40]} 44. Rd8+ {[%clk 0:01:45]}  Ke3 {[%clk 0:00:40]} 45. Kc2 {[%clk 0:01:40]}  Ke2 {[%clk 0:00:40]} 46. Rd7 {[%clk 0:01:39]}  Rxd7 {[%clk 0:00:38]} 0-1


[Site "https://www.chess.com"]

[Event "Titled Tuesday Blitz March 28 Late 2023"]
[White "Manelyuk, Daniil"]
[Black "Oliveira, Tiago Batista"]
[WhiteFideId "44173920"]
[BlackFideId "2108291"]
[WhiteElo "2259"]
[BlackElo "1962"]
[Result "1-0"]
[Round "02"]
[TimeControl "180+2"]
[Date "2023.03.28"]
[WhiteClock "0:02:26"]
[BlackClock "0:00:16"]

1. e4 {[%clk 0:03:00]}  c5 {[%clk 0:02:58]} 2. Nf3 {[%clk 0:03:00]}  Nc6 {[%clk 0:02:58]} 3. d4 {[%clk 0:03:01]}  cxd4 {[%clk 0:02:57]} 4. Nxd4 {[%clk 0:03:01]}  Nf6 {[%clk 0:02:57]} 5. Nc3 {[%clk 0:02:59]}  d6 {[%clk 0:02:56]} 6. Bg5 {[%clk 0:02:59]}  e6 {[%clk 0:02:55]} 7. Qd2 {[%clk 0:02:58]}  Be7 {[%clk 0:02:55]} 8. f4 {[%clk 0:02:57]}  Nxd4 {[%clk 0:02:52]} 9. Qxd4 {[%clk 0:02:57]}  O-O {[%clk 0:02:52]} 10. O-O-O {[%clk 0:02:56]}  Qa5 {[%clk 0:02:51]} 11. Kb1 {[%clk 0:02:56]}  h6 {[%clk 0:02:41]} 12. Bh4 {[%clk 0:02:55]}  Re8 {[%clk 0:02:35]} 13. g4 {[%clk 0:02:53]}  e5 {[%clk 0:02:29]} 14. fxe5 {[%clk 0:02:43]}  dxe5 {[%clk 0:02:27]} 15. Qe3 {[%clk 0:02:41]}  Nxg4 {[%clk 0:02:25]} 16. Qg3 {[%clk 0:02:41]}  g5 {[%clk 0:02:04]} 17. Be2 {[%clk 0:02:37]}  gxh4 {[%clk 0:02:04]} 18. Qg2 {[%clk 0:02:36]}  h5 {[%clk 0:01:25]} 19. h3 {[%clk 0:02:35]}  f5 {[%clk 0:01:04]} 20. exf5 {[%clk 0:02:30]}  Bxf5 {[%clk 0:01:02]} 21. hxg4 {[%clk 0:02:30]}  hxg4 {[%clk 0:00:51]} 22. Bxg4 {[%clk 0:02:29]}  Bh7 {[%clk 0:00:24]} 23. Bf5+ {[%clk 0:02:26]}  Kh8 {[%clk 0:00:23]} 24. Bxh7 {[%clk 0:02:26]}  Kxh7 {[%clk 0:00:21]} 25. Nd5 {[%clk 0:02:27]}  Rg8 {[%clk 0:00:16]} 26. Qe4+ {[%clk 0:02:26]} 1-0


[Site "https://www.chess.com"]

[Event "Titled Tuesday Blitz March 28 Late 2023"]
[White "Vargas, Mauricio"]
[Black "Perske, Thore"]
[WhiteFideId "4404572"]
[BlackFideId "12902195"]
[WhiteElo "2025"]
[BlackElo "2336"]
[Result "0-1"]
[Round "02"]
[TimeControl "180+2"]
[Date "2023.03.28"]
[WhiteClock "0:00:56"]
[BlackClock "0:01:44"]

1. e4 {[%clk 0:03:00]}  c6 {[%clk 0:02:59]} 2. d4 {[%clk 0:02:53]}  d5 {[%clk 0:02:59]} 3. e5 {[%clk 0:02:54]}  Bf5 {[%clk 0:02:59]} 4. g4 {[%clk 0:02:54]}  Be4 {[%clk 0:02:57]} 5. f3 {[%clk 0:02:54]}  Bg6 {[%clk 0:02:57]} 6. e6 {[%clk 0:02:53]}  fxe6 {[%clk 0:02:55]} 7. h4 {[%clk 0:02:51]}  h5 {[%clk 0:02:55]} 8. g5 {[%clk 0:02:49]}  Qd6 {[%clk 0:02:53]} 9. Ne2 {[%clk 0:02:48]}  e5 {[%clk 0:02:43]} 10. c3 {[%clk 0:02:44]}  Nd7 {[%clk 0:02:42]} 11. dxe5 {[%clk 0:02:43]}  Qxe5 {[%clk 0:02:26]} 12. Bf4 {[%clk 0:02:39]}  Qf5 {[%clk 0:02:23]} 13. Bh3 {[%clk 0:02:36]}  Qf7 {[%clk 0:02:19]} 14. O-O {[%clk 0:02:26]}  Bf5 {[%clk 0:02:19]} 15. Bxf5 {[%clk 0:02:20]}  Qxf5 {[%clk 0:02:20]} 16. Nd2 {[%clk 0:02:19]}  e5 {[%clk 0:02:19]} 17. Bg3 {[%clk 0:02:17]}  Bc5+ {[%clk 0:02:19]} 18. Kg2 {[%clk 0:02:16]}  Ne7 {[%clk 0:02:17]} 19. a4 {[%clk 0:02:13]}  Ng6 {[%clk 0:02:17]} 20. b4 {[%clk 0:02:10]}  Bb6 {[%clk 0:02:16]} 21. a5 {[%clk 0:02:09]}  Bc7 {[%clk 0:02:16]} 22. Qe1 {[%clk 0:02:06]}  Ndf8 {[%clk 0:02:15]} 23. Nd4 {[%clk 0:02:03]}  Qd7 {[%clk 0:02:10]} 24. N4b3 {[%clk 0:01:56]}  Ne6 {[%clk 0:02:08]} 25. Nc5 {[%clk 0:01:53]}  Nxc5 {[%clk 0:02:07]} 26. bxc5 {[%clk 0:01:54]}  O-O {[%clk 0:02:05]} 27. a6 {[%clk 0:01:54]}  b5 {[%clk 0:02:00]} 28. Qb1 {[%clk 0:01:30]}  Nf4+ {[%clk 0:01:59]} 29. Bxf4 {[%clk 0:01:26]}  Rxf4 {[%clk 0:02:00]} 30. Qg6 {[%clk 0:01:18]}  Rxh4 {[%clk 0:01:55]} 31. Rh1 {[%clk 0:01:13]}  Rxh1 {[%clk 0:01:53]} 32. Rxh1 {[%clk 0:01:12]}  Qe8 {[%clk 0:01:49]} 33. Qxc6 {[%clk 0:01:03]}  Qxc6 {[%clk 0:01:48]} 34. Rxh5 {[%clk 0:00:59]}  Qxa6 {[%clk 0:01:45]} 35. g6 {[%clk 0:00:56]}  Qxg6+ {[%clk 0:01:44]} 0-1


[Site "https://www.chess.com"]

[Event "Titled Tuesday Blitz March 28 Late 2023"]
[White "koncheto"]
[Black "Rustemov, Alexander"]
[BlackFideId "4119002"]
[WhiteElo "2487"]
[BlackElo "2858"]
[Result "0-1"]
[Round "02"]
[TimeControl "180+2"]
[Date "2023.03.28"]
[WhiteClock "0:00:04"]
[BlackClock "0:00:51"]

1. e4 {[%clk 0:03:00]}  e6 {[%clk 0:02:57]} 2. d4 {[%clk 0:03:01]}  d5 {[%clk 0:02:58]} 3. Nd2 {[%clk 0:03:00]}  dxe4 {[%clk 0:02:57]} 4. Nxe4 {[%clk 0:03:01]}  Bd7 {[%clk 0:02:57]} 5. Bd3 {[%clk 0:03:01]}  Bc6 {[%clk 0:02:58]} 6. Nf3 {[%clk 0:02:59]}  Nd7 {[%clk 0:02:57]} 7. c3 {[%clk 0:02:59]}  Ngf6 {[%clk 0:02:58]} 8. Qe2 {[%clk 0:02:59]}  Nxe4 {[%clk 0:02:56]} 9. Bxe4 {[%clk 0:03:00]}  Bxe4 {[%clk 0:02:56]} 10. Qxe4 {[%clk 0:03:00]}  c6 {[%clk 0:02:56]} 11. O-O {[%clk 0:03:01]}  Be7 {[%clk 0:02:56]} 12. Bf4 {[%clk 0:02:58]}  O-O {[%clk 0:02:55]} 13. Rad1 {[%clk 0:02:58]}  Qa5 {[%clk 0:02:53]} 14. a3 {[%clk 0:02:57]}  Rfe8 {[%clk 0:02:50]} 15. Rfe1 {[%clk 0:02:57]}  Rad8 {[%clk 0:02:50]} 16. Ne5 {[%clk 0:02:57]}  Qd5 {[%clk 0:02:39]} 17. Qc2 {[%clk 0:02:52]}  Nxe5 {[%clk 0:02:23]} 18. Rxe5 {[%clk 0:02:36]}  Qc4 {[%clk 0:02:17]} 19. Re3 {[%clk 0:02:31]}  Bf6 {[%clk 0:02:07]} 20. Red3 {[%clk 0:02:29]}  Qd5 {[%clk 0:01:57]} 21. h3 {[%clk 0:02:27]}  Qf5 {[%clk 0:01:54]} 22. Bg3 {[%clk 0:02:05]}  Rd7 {[%clk 0:01:52]} 23. Qe2 {[%clk 0:02:03]}  Red8 {[%clk 0:01:51]} 24. Rf3 {[%clk 0:01:57]}  Qh5 {[%clk 0:01:47]} 25. b4 {[%clk 0:01:24]}  b6 {[%clk 0:01:41]} 26. Re3 {[%clk 0:01:00]}  Qxe2 {[%clk 0:01:40]} 27. Rxe2 {[%clk 0:01:01]}  c5 {[%clk 0:01:40]} 28. Be5 {[%clk 0:00:44]}  Bxe5 {[%clk 0:01:37]} 29. Rxe5 {[%clk 0:00:44]}  cxd4 {[%clk 0:01:37]} 30. c4 {[%clk 0:00:41]}  Rc8 {[%clk 0:01:32]} 31. c5 {[%clk 0:00:40]}  bxc5 {[%clk 0:01:30]} 32. bxc5 {[%clk 0:00:21]}  Kf8 {[%clk 0:01:27]} 33. Re4 {[%clk 0:00:20]}  Rxc5 {[%clk 0:01:23]} 34. Rexd4 {[%clk 0:00:20]}  Rxd4 {[%clk 0:01:21]} 35. Rxd4 {[%clk 0:00:21]}  Ke7 {[%clk 0:01:20]} 36. g3 {[%clk 0:00:19]}  Ra5 {[%clk 0:01:14]} 37. Rd3 {[%clk 0:00:18]}  g5 {[%clk 0:01:10]} 38. Kg2 {[%clk 0:00:17]}  Ra4 {[%clk 0:01:10]} 39. Rb3 {[%clk 0:00:15]}  h5 {[%clk 0:01:08]} 40. Rd3 {[%clk 0:00:15]}  Kf6 {[%clk 0:01:06]} 41. Kf3 {[%clk 0:00:11]}  h4 {[%clk 0:01:06]} 42. Kg2 {[%clk 0:00:10]}  Kg6 {[%clk 0:01:05]} 43. Kf3 {[%clk 0:00:10]}  f6 {[%clk 0:01:05]} 44. Kg2 {[%clk 0:00:11]}  e5 {[%clk 0:01:06]} 45. Kf3 {[%clk 0:00:11]}  hxg3 {[%clk 0:01:04]} 46. Kxg3 {[%clk 0:00:09]}  a5 {[%clk 0:01:01]} 47. Kg2 {[%clk 0:00:09]}  Kf5 {[%clk 0:01:01]} 48. Kg3 {[%clk 0:00:09]}  Rd4 {[%clk 0:00:58]} 49. Rf3+ {[%clk 0:00:09]}  Ke6 {[%clk 0:00:58]} 50. Rb3 {[%clk 0:00:10]}  a4 {[%clk 0:00:58]} 51. Rb6+ {[%clk 0:00:10]}  Kf5 {[%clk 0:00:57]} 52. Ra6 {[%clk 0:00:06]}  Rd3+ {[%clk 0:00:57]} 53. Kg2 {[%clk 0:00:06]}  Rxa3 {[%clk 0:00:57]} 54. Kh2 {[%clk 0:00:06]}  Ra1 {[%clk 0:00:56]} 55. Kg2 {[%clk 0:00:06]}  a3 {[%clk 0:00:57]} 56. Kh2 {[%clk 0:00:06]}  e4 {[%clk 0:00:57]} 57. Kg2 {[%clk 0:00:05]}  Ke5 {[%clk 0:00:57]} 58. Kh2 {[%clk 0:00:04]}  f5 {[%clk 0:00:57]} 59. Ra5+ {[%clk 0:00:05]}  Kf4 {[%clk 0:00:55]} 60. Kg2 {[%clk 0:00:05]}  a2 {[%clk 0:00:52]} 61. Ra3 {[%clk 0:00:05]}  Ke5 {[%clk 0:00:51]} 62. Ra5+ {[%clk 0:00:04]}  Kd4 {[%clk 0:00:51]} 0-1


[Site "https://www.chess.com"]

[Event "Titled Tuesday Blitz March 28 Late 2023"]
[White "Ashraf, Artin"]
[Black "Vaglio Munoz, Jaime"]
[WhiteFideId "22514805"]
[BlackFideId "6500145"]
[WhiteElo "2188"]
[BlackElo "2199"]
[Result "0-1"]
[Round "02"]
[TimeControl "180+2"]
[Date "2023.03.28"]
[WhiteClock "0:00:04"]
[BlackClock "0:00:11"]

1. b3 {[%clk 0:03:00]}  d5 {[%clk 0:02:57]} 2. Bb2 {[%clk 0:03:00]}  Nf6 {[%clk 0:02:57]} 3. Nf3 {[%clk 0:02:58]}  Bf5 {[%clk 0:02:57]} 4. e3 {[%clk 0:02:54]}  h6 {[%clk 0:02:54]} 5. Be2 {[%clk 0:02:49]}  e6 {[%clk 0:02:53]} 6. O-O {[%clk 0:02:43]}  Be7 {[%clk 0:02:53]} 7. Ne5 {[%clk 0:02:41]}  O-O {[%clk 0:02:50]} 8. f4 {[%clk 0:02:41]}  Nbd7 {[%clk 0:02:46]} 9. d3 {[%clk 0:02:37]}  Nxe5 {[%clk 0:02:39]} 10. fxe5 {[%clk 0:02:36]}  Nd7 {[%clk 0:02:38]} 11. Nd2 {[%clk 0:02:36]}  Bc5 {[%clk 0:02:33]} 12. d4 {[%clk 0:02:28]}  Bb6 {[%clk 0:02:15]} 13. c4 {[%clk 0:02:24]}  c6 {[%clk 0:02:12]} 14. Ba3 {[%clk 0:02:15]}  Re8 {[%clk 0:02:06]} 15. Bf3 {[%clk 0:02:10]}  Nf8 {[%clk 0:01:52]} 16. Kh1 {[%clk 0:02:03]}  Qg5 {[%clk 0:01:43]} 17. Qe2 {[%clk 0:01:54]}  Rad8 {[%clk 0:01:25]} 18. Bd6 {[%clk 0:01:51]}  f6 {[%clk 0:01:18]} 19. b4 {[%clk 0:01:43]}  fxe5 {[%clk 0:01:14]} 20. Bxe5 {[%clk 0:01:41]}  Ng6 {[%clk 0:01:13]} 21. Bg3 {[%clk 0:01:31]}  a6 {[%clk 0:00:52]} 22. c5 {[%clk 0:01:21]}  Ba7 {[%clk 0:00:52]} 23. e4 {[%clk 0:01:20]}  dxe4 {[%clk 0:00:52]} 24. Nxe4 {[%clk 0:01:02]}  Bxe4 {[%clk 0:00:51]} 25. Qxe4 {[%clk 0:01:01]}  Bb8 {[%clk 0:00:46]} 26. Bf2 {[%clk 0:00:59]}  Qf4 {[%clk 0:00:41]} 27. g3 {[%clk 0:00:31]}  Qxe4 {[%clk 0:00:38]} 28. Bxe4 {[%clk 0:00:32]}  Ne7 {[%clk 0:00:35]} 29. a3 {[%clk 0:00:29]}  e5 {[%clk 0:00:29]} 30. dxe5 {[%clk 0:00:24]}  Bxe5 {[%clk 0:00:28]} 31. Rad1 {[%clk 0:00:24]}  Bb2 {[%clk 0:00:19]} 32. a4 {[%clk 0:00:22]}  Bc3 {[%clk 0:00:16]} 33. Rb1 {[%clk 0:00:20]}  Nd5 {[%clk 0:00:15]} 34. Bxd5+ {[%clk 0:00:15]}  Rxd5 {[%clk 0:00:15]} 35. b5 {[%clk 0:00:15]}  axb5 {[%clk 0:00:15]} 36. axb5 {[%clk 0:00:16]}  Re2 {[%clk 0:00:14]} 37. bxc6 {[%clk 0:00:15]}  bxc6 {[%clk 0:00:15]} 38. Rb6 {[%clk 0:00:15]}  Rdd2 {[%clk 0:00:15]} 39. Bg1 {[%clk 0:00:14]}  Bd4 {[%clk 0:00:15]} 40. Rb8+ {[%clk 0:00:07]}  Kh7 {[%clk 0:00:15]} 41. Rd8 {[%clk 0:00:08]}  Bxg1 {[%clk 0:00:11]} 42. Rxd2 {[%clk 0:00:08]}  Rxd2 {[%clk 0:00:10]} 43. Kxg1 {[%clk 0:00:09]}  Rd5 {[%clk 0:00:10]} 44. Rc1 {[%clk 0:00:09]}  Rf5 {[%clk 0:00:09]} 45. Kg2 {[%clk 0:00:07]}  h5 {[%clk 0:00:10]} 46. h3 {[%clk 0:00:07]}  g5 {[%clk 0:00:10]} 47. g4 {[%clk 0:00:07]}  hxg4 {[%clk 0:00:10]} 48. hxg4 {[%clk 0:00:08]}  Re5 {[%clk 0:00:10]} 49. Kf3 {[%clk 0:00:08]}  Kg6 {[%clk 0:00:10]} 50. Rc2 {[%clk 0:00:08]}  Kf6 {[%clk 0:00:11]} 51. Rc1 {[%clk 0:00:08]}  Ke6 {[%clk 0:00:11]} 52. Rc2 {[%clk 0:00:06]}  Kd5 {[%clk 0:00:11]} 53. Rc1 {[%clk 0:00:07]}  Kd4 {[%clk 0:00:12]} 54. Ra1 {[%clk 0:00:04]}  Rxc5 {[%clk 0:00:11]} 55. Rc1 {[%clk 0:00:04]}  Rxc1 {[%clk 0:00:11]} 0-1


[Site "https://www.chess.com"]

[Event "Titled Tuesday Blitz March 28 Late 2023"]
[White "Wagner, Dennis"]
[Black "Ansh M Shah"]
[WhiteFideId "24650684"]
[BlackFideId "25033379"]
[WhiteElo "2470"]
[BlackElo "2084"]
[Result "1-0"]
[Round "02"]
[TimeControl "180+2"]
[Date "2023.03.28"]
[WhiteClock "0:00:27"]
[BlackClock "0:00:11"]

1. d4 {[%clk 0:03:00]}  Nf6 {[%clk 0:03:00]} 2. Nf3 {[%clk 0:02:58]}  g6 {[%clk 0:03:00]} 3. Bf4 {[%clk 0:02:52]}  d6 {[%clk 0:02:59]} 4. h3 {[%clk 0:02:51]}  Bg7 {[%clk 0:03:00]} 5. Nbd2 {[%clk 0:02:40]}  O-O {[%clk 0:03:00]} 6. c3 {[%clk 0:02:38]}  b6 {[%clk 0:03:00]} 7. e3 {[%clk 0:02:38]}  Bb7 {[%clk 0:03:00]} 8. Bd3 {[%clk 0:02:38]}  Nbd7 {[%clk 0:03:01]} 9. a4 {[%clk 0:02:35]}  a6 {[%clk 0:03:00]} 10. Qe2 {[%clk 0:02:17]}  Re8 {[%clk 0:02:59]} 11. Bh2 {[%clk 0:02:15]}  e5 {[%clk 0:02:57]} 12. dxe5 {[%clk 0:02:02]}  dxe5 {[%clk 0:02:58]} 13. e4 {[%clk 0:02:03]}  Nh5 {[%clk 0:02:51]} 14. O-O {[%clk 0:01:58]}  Nf4 {[%clk 0:02:46]} 15. Bxf4 {[%clk 0:01:57]}  exf4 {[%clk 0:02:46]} 16. Bc4 {[%clk 0:01:42]}  Qe7 {[%clk 0:02:41]} 17. Rfe1 {[%clk 0:01:38]}  Ne5 {[%clk 0:02:33]} 18. Nxe5 {[%clk 0:01:38]}  Bxe5 {[%clk 0:02:34]} 19. Nf3 {[%clk 0:01:37]}  Kg7 {[%clk 0:02:24]} 20. Rad1 {[%clk 0:01:35]}  a5 {[%clk 0:02:18]} 21. Bd5 {[%clk 0:01:21]}  Ba6 {[%clk 0:02:09]} 22. Qc2 {[%clk 0:01:17]}  Rad8 {[%clk 0:02:09]} 23. Bc6 {[%clk 0:01:09]}  Rf8 {[%clk 0:02:08]} 24. Qb3 {[%clk 0:01:06]}  Rxd1 {[%clk 0:02:01]} 25. Rxd1 {[%clk 0:01:05]}  Be2 {[%clk 0:02:01]} 26. Rd7 {[%clk 0:01:05]}  Qf6 {[%clk 0:01:53]} 27. Nxe5 {[%clk 0:00:57]}  Qxe5 {[%clk 0:01:54]} 28. Bd5 {[%clk 0:00:52]}  f3 {[%clk 0:01:13]} 29. Bxf7 {[%clk 0:00:50]}  Qf4 {[%clk 0:00:53]} 30. Bg8+ {[%clk 0:00:46]}  Kh6 {[%clk 0:00:52]} 31. Rxh7+ {[%clk 0:00:46]}  Kg5 {[%clk 0:00:52]} 32. Qd5+ {[%clk 0:00:45]}  Rf5 {[%clk 0:00:44]} 33. Qd8+ {[%clk 0:00:40]}  Rf6 {[%clk 0:00:42]} 34. h4+ {[%clk 0:00:41]}  Kg4 {[%clk 0:00:37]} 35. Qd7+ {[%clk 0:00:40]}  Rf5 {[%clk 0:00:36]} 36. exf5 {[%clk 0:00:32]}  Qc1+ {[%clk 0:00:14]} 37. Kh2 {[%clk 0:00:33]}  Qf1 {[%clk 0:00:12]} 38. fxg6+ {[%clk 0:00:31]}  Kf4 {[%clk 0:00:12]} 39. g3+ {[%clk 0:00:30]}  Ke5 {[%clk 0:00:11]} 40. Qe6# {[%clk 0:00:27]} 1-0


[Site "https://www.chess.com"]